fUSD/lending_fUSD_20250620
["ID","MTS","AMOUNT","RATE_DAILY","PERIOD"]
[366681783,1750410631876,-300.0,0.00023911,2]
[366681784,1750410631885,-250.0,0.00023944,2]
[366681785,1750410631894,-300.0,0.00023978,2]
[366681786,1750410631903,-250.0,0.00024003,2]
[366681787,1750410631913,-1000.0,0.0002401,2]
[366681788,1750410631923,-300.0,0.00024073,2]
[366681789,1750410631932,-1200.0,0.00024073,2]
[366681790,1750410631942,-1312.89323729,0.00024074,2]
[366681791,1750410631954,-315.94,0.00024074,2]
[366681792,1750410631965,-9028.58371268,0.00024074,2]
[366681793,1750410631976,-5877.80305003,0.00024074,2]
[366681794,1750410631986,-250.0,0.00024079,2]
[366681795,1750410631995,-165.43,0.00024116,3]
[366681796,1750410632006,-202.0,0.00024404,2]
[366681797,1750410632015,-157.19,0.0002448,2]
[366681798,1750410632025,-157.19,0.00024487,2]
[366681799,1750410632035,-157.19,0.00024495,2]
[366681800,1750410632044,-500.0,0.00024497,2]
[366681801,1750410632054,-157.19,0.00024502,2]
[366681802,1750410632064,-157.19,0.00024509,2]
[366681803,1750410632073,-197.66,0.00024511,2]
[366681805,1750410632083,-5000.7,0.00024516,2]
[366681806,1750410632092,-157.19,0.00024516,2]
[366681808,1750410632102,-166.5,0.0002452,2]
[366681810,1750410632111,-157.19,0.00024523,2]
[366681812,1750410632122,-157.19,0.00024531,2]
[366681813,1750410632131,-157.19,0.00024538,2]
[366681814,1750410632141,-550.0,0.00024545,2]
[366681815,1750410632150,-157.19,0.00024545,2]
[366681816,1750410632160,-157.19,0.00024552,2]
[366681818,1750410632170,-157.19,0.00024559,2]
[366681820,1750410632179,-157.19,0.00024567,2]
[366681822,1750410632189,-157.19,0.00024574,2]
[366681824,1750410632199,-157.19,0.00024581,2]
[366681826,1750410632209,-157.19,0.00024588,2]
[366681828,1750410632219,-157.19,0.00024595,2]
[366681830,1750410632228,-157.19,0.00024603,2]
[366681832,1750410632238,-154.31,0.00024613,2]
[366681834,1750410632248,-151.0,0.00024673,2]
[366681836,1750410632258,-207.4,0.00024673,2]
[366681838,1750410632268,-200.0,0.00024706,2]
[366681840,1750410632278,-299.0,0.00024729,7]
[366681842,1750410632288,-1024.52876473,0.000249,12]
[366681844,1750410632297,-163.48,0.00024981,2]
[366681846,1750410632306,-168.0,0.00025017,2]
[366681848,1750410632316,-297.0,0.00025077,7]
[366681849,1750410632325,-1024.52876446,0.00025107,12]
[366681851,1750410632335,-152.0,0.00025108,3]
[366681854,1750410632344,-168.0,0.00025164,7]
[366681857,1750410632354,-168.0,0.0002525,2]
[366681859,1750410632363,-168.0,0.00025284,2]
[366681861,1750410632376,-1024.52876446,0.00025314,12]
[366681863,1750410632385,-166.28,0.00025321,2]
[366681865,1750410632395,-1100.0,0.000254,9]
[366681867,1750410632405,-509.0,0.000255,10]
[366681868,1750410632414,-1008.0,0.000255,2]
[366681869,1750410632424,-2200.0,0.000255,9]
[366681870,1750410632434,-1741.75543145,0.000255,2]
[366681871,1750410632443,-163.55,0.00025507,2]
[366681872,1750410632453,-1165.36,0.00025507,2]
[366681873,1750410632463,-1165.36,0.00025507,2]
[366681874,1750410632472,-1936.08,0.00025507,2]
[366681875,1750410632482,-1024.52876446,0.00025521,13]
[366681876,1750410632491,-2694.59897764,0.00025526,2]
[366681877,1750410632501,-1000.0,0.00025527,2]
[366681878,1750410632510,-792.70495898,0.00025528,2]
[366681879,1750410632519,-163.02255277,0.00025528,2]
[366681880,1750410632528,-150.0,0.00025534,2]
[366681881,1750410632537,-170.91,0.00025534,2]
[366681882,1750410632548,-170.91,0.00025534,2]
[366681884,1750410632558,-455.44,0.00025534,2]
[366681886,1750410632567,-354.91,0.00025534,2]
[366681888,1750410632578,-1165.36,0.00025534,2]
[366681890,1750410632587,-252.36029693,0.00025536,2]
[366681892,1750410632597,-17270.16198676,0.00025536,10]
[366681894,1750410632606,-5000.0,0.00025537,2]
[366681896,1750410632615,-18102.671,0.00025537,3]
[366681898,1750410632625,-834.11677829,0.00025537,10]
[366681900,1750410632634,-1322.09041705,0.00025538,2]
[366681904,1750410632663,-34818.23178295,0.00025538,2]
[366681906,1750410632673,-2694.59897749,0.00025545,2]
[366681908,1750410632682,-834.11677829,0.00025552,2]
[366681910,1750410632692,-157.75583219,0.00025555,2]
[366681912,1750410632701,-610.2043414,0.00025555,2]
[366681914,1750410632712,-2694.59897749,0.00025564,2]
[366681916,1750410632721,-1741.75543139,0.00025565,2]
[366681918,1750410632731,-2694.59897749,0.00025583,2]
[366681920,1750410632741,-792.70495892,0.00025592,2]
[366681922,1750410632750,-1368.29666733,0.000256,2]
[366681925,1750410632771,-314.0,0.000256,2]
[366681927,1750410632783,-428.72776054,0.000256,2]
[366681931,1750410632807,-1278.4,0.000256,2]
[366681933,1750410632818,-682.16950726,0.000256,2]
[366681935,1750410632829,-3154.4258894,0.000256,2]
[366681937,1750410632841,-330.4302491,0.000256,2]
[366681940,1750410632853,-583.18548524,0.000256,2]
[366681942,1750410632865,-967.5965027,0.000256,2]
[366682174,1750410637603,-1207.65405408,0.00025527,2]
[366682175,1750410637615,-316.73,0.00025527,2]
[366682176,1750410637655,-808.71829025,0.00025527,2]
[366682177,1750410637667,-528.69395831,0.00025527,2]
[366682178,1750410637679,-1085.09011866,0.00025527,2]
[366682179,1750410637816,-7873.3477787,0.00025527,2]
[366682180,1750410637826,-20892.76793843,0.000256,2]
[366682181,1750410637836,-3300.0,0.000256,9]
[366682182,1750410637848,-2694.59897749,0.00025603,2]
[366682183,1750410637858,-167.87,0.00025615,2]
[366682184,1750410637869,-167.87,0.00025616,2]
[366682185,1750410637880,-167.87,0.00025616,2]
[366682186,1750410637890,-5397.50249744,0.00025617,2]
[366682187,1750410637901,-167.87,0.00025617,2]
[366682188,1750410637912,-167.87,0.00025617,2]
[366682189,1750410637923,-4048.12687308,0.00025618,2]
[366682190,1750410637934,-2694.59897749,0.00025622,2]
[366682191,1750410637945,-490.0,0.00025625,4]
[366682192,1750410637955,-490.0,0.00025625,4]
[366682193,1750410637966,-1282.92,0.00025625,4]
[366682196,1750410637988,-490.0,0.00025625,4]
[366682197,1750410637999,-490.0,0.00025625,4]
[366682198,1750410638010,-402.48879065,0.00025625,2]
[366682199,1750410638025,-97.51120935,0.00025625,2]
[366682200,1750410638036,-500.0,0.00025625,2]
[366682201,1750410638046,-217.19965227,0.00025625,2]
[366682202,1750410638058,-334.37454839,0.00025625,2]
[366682203,1750410638068,-500.0,0.00025625,2]
[366682204,1750410638079,-500.0,0.00025625,2]
[366682205,1750410638090,-550.81988383,0.00025625,2]
[366682206,1750410638100,-500.0,0.00025625,2]
[366682207,1750410638111,-405.59124596,0.00025625,2]
[366682208,1750410638123,-317.68359563,0.00025625,2]
[366682210,1750410638134,-264.6170604,0.00025625,2]
[366682212,1750410638144,-490.0,0.00025625,4]
[366682214,1750410638155,-490.0,0.00025625,4]
[366682215,1750410638166,-234.72458936,0.00025625,2]
[366682216,1750410638177,-1450.56,0.00025625,4]
[366682218,1750410638188,-490.0,0.00025625,2]
[366682220,1750410638200,-8096.25374616,0.00025625,2]
[366682221,1750410638210,-2569.83827864,0.00025626,2]
[366682222,1750410638224,-1072.35,0.00025626,2]
[366682223,1750410638251,-494.34043977,0.00025626,2]
[366682226,1750410640575,-10706.60314959,0.00025626,2]
[366682227,1750410640586,-21665.22730295,0.00025626,2]
[366682228,1750410640599,-1639.9999995,0.00025626,2]
[366682229,1750410640623,-2169.26398951,0.00025626,2]
[366682230,1750410640637,-25622.06161454,0.00025626,2]
[366682231,1750410640648,-490.0,0.00025626,4]
[366682232,1750410640660,-490.0,0.00025626,4]
[366682233,1750410640671,-490.0,0.00025626,4]
[366682234,1750410640683,-490.0,0.00025626,4]
[366682235,1750410641223,-490.0,0.00025626,4]
[366682236,1750410641234,-490.0,0.00025626,4]
[366682237,1750410641245,-489.62015759,0.00025626,4]
[366682238,1750410641257,-490.0,0.00025626,4]
[366682239,1750410641267,-639.99,0.00025626,4]
[366682240,1750410641277,-554.95,0.00025626,4]
[366682241,1750410641287,-490.0,0.00025626,4]
[366682242,1750410641298,-490.0,0.00025626,4]
[366682243,1750410641307,-490.0,0.00025626,4]
[366682244,1750410641318,-490.0,0.00025626,4]
[366682245,1750410641328,-783.6,0.00025626,4]
[366682246,1750410641338,-885.25,0.00025626,4]
[366682247,1750410641348,-732.79,0.00025626,4]
[366682248,1750410641357,-540.65,0.00025626,4]
[366682249,1750410641368,-490.0,0.00025626,4]
[366682250,1750410641383,-490.0,0.00025626,4]
[366682251,1750410641393,-490.0,0.00025626,4]
[366682252,1750410641402,-2186.75,0.00025626,4]
[366682253,1750410641418,-678.95,0.00025626,4]
[366682254,1750410641428,-490.0,0.00025626,4]
[366682255,1750410641438,-490.0,0.00025626,4]
[366682256,1750410641450,-527.31,0.00025626,4]
[366682257,1750410641460,-490.0,0.00025626,4]
[366682258,1750410641470,-1132.31,0.00025626,4]
[366682259,1750410641481,-825.03,0.00025626,4]
[366682260,1750410641491,-490.0,0.00025626,4]
[366682261,1750410641502,-516.14,0.00025626,4]
[366682262,1750410641513,-1006.33,0.00025626,4]
[366682263,1750410641523,-490.0,0.00025626,4]
[366682264,1750410641533,-490.0,0.00025626,4]
[366682265,1750410641545,-599.32,0.00025626,4]
[366682266,1750410641555,-577.44,0.00025626,4]
[366682267,1750410641566,-490.0,0.00025626,4]
[366682268,1750410641577,-490.0,0.00025626,4]
[366682269,1750410641588,-2882.82,0.00025626,4]
[366682270,1750410641598,-490.0,0.00025626,4]
[366682271,1750410641608,-490.0,0.00025626,4]
[366682272,1750410641618,-2144.44,0.00025626,4]
[366682273,1750410641629,-4763.94,0.00025626,4]
[366682274,1750410641639,-660.32,0.00025626,4]
[366682275,1750410641650,-513.93,0.00025626,4]
[366682276,1750410641661,-2165.836164,0.00025626,4]
[366682277,1750410641671,-900.31,0.00025626,4]
[366682278,1750410641681,-159.469271,0.00025626,4]
[366682279,1750410641691,-152.3464,0.00025626,4]
[366682280,1750410641702,-683.18,0.00025626,4]
[366682281,1750410641713,-702.93,0.00025626,4]
[366682282,1750410641724,-144773.566568,0.00025627,2]
[366682283,1750410641734,-17032.1843022,0.00025628,2]
[366682284,1750410641745,-1741.75543139,0.0002563,2]
[366682285,1750410641757,-490.0,0.00025635,4]
[366682286,1750410641768,-490.0,0.00025635,4]
[366682287,1750410641778,-538.67,0.00025635,4]
[366682288,1750410641790,-490.0,0.00025635,4]
[366682289,1750410641801,-490.0,0.00025635,4]
[366682290,1750410641813,-490.0,0.00025635,4]
[366682291,1750410641824,-490.0,0.00025635,4]
[366682292,1750410641835,-1426.85,0.00025635,4]
[366682293,1750410641845,-1302.04,0.00025635,4]
[366682294,1750410641860,-6385.65,0.00025635,4]
[366682295,1750410641871,-883.0,0.00025635,4]
[366682296,1750410641882,-921.18,0.00025635,4]
[366682297,1750410641893,-1413.02,0.00025635,4]
[366682298,1750410641904,-1145.78,0.00025635,4]
[366682299,1750410641915,-490.0,0.00025635,4]
[366682300,1750410641926,-1259.6,0.00025635,4]
[366682301,1750410641936,-1088.52,0.00025635,4]
[366682302,1750410641948,-490.0,0.00025635,4]
[366682303,1750410641959,-549.98,0.00025635,4]
[366682304,1750410641970,-490.0,0.00025635,4]
[366682305,1750410641981,-1245.0,0.00025635,4]
[366682306,1750410641992,-5526.46,0.00025635,4]
[366682307,1750410642003,-490.0,0.00025635,4]
[366682308,1750410642015,-1023.34,0.00025635,4]
[366682309,1750410642026,-4105.27,0.00025635,4]
[366682310,1750410642037,-1723.19,0.00025635,4]
[366682311,1750410642047,-1935.28,0.00025635,4]
[366682312,1750410642059,-1052.52,0.00025635,4]
[366682313,1750410642070,-490.0,0.00025635,4]
[366682314,1750410642082,-2212.5,0.00025635,4]
[366682315,1750410642094,-603.56,0.00025635,4]
[366682316,1750410642106,-3028.24,0.00025635,4]
[366682317,1750410642117,-2639.5,0.00025635,4]
[366682318,1750410642128,-2532.61,0.00025635,4]
[366682319,1750410642139,-490.0,0.00025635,4]
[366682320,1750410642150,-2343.97,0.00025635,4]
[366682321,1750410642161,-1811.58,0.00025635,4]
[366682322,1750410642171,-490.0,0.00025636,4]
[366682323,1750410642182,-490.0,0.00025636,4]
[366682324,1750410642193,-490.0,0.00025636,4]
[366682325,1750410642204,-490.0,0.00025636,4]
[366682326,1750410642214,-490.0,0.00025636,4]
[366682327,1750410642225,-490.0,0.00025636,4]
[366682328,1750410642236,-490.0,0.00025636,4]
[366682329,1750410642246,-515.98,0.00025636,4]
[366682330,1750410642257,-533.82795877,0.00025636,4]
[366682331,1750410642268,-490.0,0.00025636,4]
[366682332,1750410642279,-490.0,0.00025636,4]
[366682333,1750410642302,-490.0,0.00025636,4]
[366682334,1750410642315,-490.0,0.00025636,4]
[366682335,1750410642327,-490.0,0.00025636,4]
[366682336,1750410642337,-635.92,0.00025636,4]
[366682337,1750410642349,-490.0,0.00025636,4]
[366682338,1750410642360,-490.0,0.00025636,4]
[366682339,1750410642371,-490.0,0.00025636,4]
[366682340,1750410642384,-490.0,0.00025636,4]
[366682341,1750410642394,-490.0,0.00025636,4]
[366682342,1750410642405,-500.0,0.00025636,4]
[366682343,1750410642415,-490.0,0.00025636,4]
[366682344,1750410642426,-490.0,0.00025636,4]
[366682345,1750410642436,-1000.0,0.00025636,4]
[366682346,1750410642446,-490.0,0.00025636,4]
[366682347,1750410642458,-496.25647122,0.00025636,4]
[366682348,1750410642469,-490.0,0.00025636,4]
[366682349,1750410642480,-490.0,0.00025636,4]
[366682350,1750410642490,-490.0,0.00025636,2]
[366682351,1750410642500,-490.0,0.00025636,4]
[366682352,1750410642510,-490.0,0.00025636,4]
[366682353,1750410642521,-490.0,0.00025636,4]
[366682354,1750410642531,-490.0,0.00025636,4]
[366682355,1750410642542,-490.0,0.00025636,4]
[366682356,1750410642552,-494.19,0.00025636,4]
[366682357,1750410642563,-490.0,0.00025636,4]
[366682358,1750410642574,-584.73,0.00025636,4]
[366682359,1750410642585,-490.0,0.00025636,4]
[366682360,1750410642595,-490.0,0.00025636,4]
[366682361,1750410642606,-879.55,0.00025636,4]
[366682362,1750410642616,-490.0,0.00025636,4]
[366682364,1750410642626,-490.0,0.00025636,4]
[366682366,1750410642637,-490.0,0.00025636,4]
[366682368,1750410642648,-490.0,0.00025636,4]
[366682369,1750410642659,-900.57,0.00025636,4]
[366682371,1750410642669,-490.0,0.00025636,4]
[366682373,1750410642679,-253.71771129,0.00025636,4]
[366682375,1750410642690,-490.0,0.00025636,4]
[366682377,1750410642700,-586.73,0.00025636,4]
[366682379,1750410642711,-490.0,0.00025636,4]
[366682382,1750410642727,-490.0,0.00025636,4]
[366682384,1750410642738,-490.0,0.00025636,4]
[366682385,1750410642750,-490.0,0.00025636,4]
[366682387,1750410642761,-490.0,0.00025636,4]
[366682388,1750410642771,-537.15,0.00025636,4]
[366682389,1750410642782,-490.0,0.00025636,4]
[366682390,1750410642793,-575.93,0.00025636,4]
[366682391,1750410642804,-490.0,0.00025636,4]
[366682392,1750410642815,-750.35,0.00025636,4]
[366682393,1750410642826,-490.0,0.00025636,4]
[366682394,1750410642837,-335.97,0.00025636,4]
[366682395,1750410642848,-490.0,0.00025636,4]
[366682396,1750410642859,-490.0,0.00025636,4]
[366682397,1750410642870,-490.0,0.00025636,4]
[366682398,1750410642881,-490.0,0.00025636,4]
[366682399,1750410642893,-227.75346373,0.00025636,4]
[366682400,1750410642904,-490.0,0.00025636,4]
[366682401,1750410642915,-490.0,0.00025636,4]
[366682402,1750410642926,-490.0,0.00025636,4]
[366682403,1750410642937,-490.0,0.00025636,4]
[366682404,1750410642948,-490.0,0.00025636,4]
[366682405,1750410642959,-671.01,0.00025636,4]
[366682406,1750410642970,-849.34,0.00025636,4]
[366682407,1750410642981,-490.0,0.00025636,4]
[366682408,1750410642992,-530.62,0.00025636,4]
[366682409,1750410643003,-490.0,0.00025636,4]
[366682410,1750410643013,-490.0,0.00025636,4]
[366682411,1750410643024,-490.0,0.00025636,4]
[366682412,1750410643036,-676.82,0.00025636,4]
[366682413,1750410643047,-490.0,0.00025636,4]
[366682414,1750410643058,-1524.45,0.00025636,4]
[366682415,1750410643070,-490.0,0.00025636,4]
[366682416,1750410643082,-493.24,0.00025636,4]
[366682419,1750410643093,-490.0,0.00025636,4]
[366682421,1750410643104,-490.0,0.00025636,4]
[366682423,1750410643115,-1272.92,0.00025636,4]
[366682425,1750410643125,-490.0,0.00025636,4]
[366682427,1750410643136,-527.83,0.00025636,4]
[366682429,1750410643147,-170.02739087,0.00025636,4]
[366682431,1750410643158,-490.0,0.00025636,4]
[366682433,1750410643169,-490.0,0.00025636,4]
[366682435,1750410643180,-490.0,0.00025636,4]
[366682437,1750410643190,-490.0,0.00025636,4]
[366682440,1750410643201,-490.0,0.00025636,4]
[366682442,1750410643212,-682.7,0.00025636,4]
[366682444,1750410643221,-490.0,0.00025636,4]
[366682446,1750410643232,-490.0,0.00025636,4]
[366682448,1750410643242,-490.0,0.00025636,4]
[366682450,1750410643253,-490.0,0.00025636,4]
[366682452,1750410643263,-866.37,0.00025636,4]
[366682454,1750410643274,-2043.42,0.00025636,4]
[366682456,1750410643284,-490.0,0.00025636,4]
[366682458,1750410643294,-490.0,0.00025636,4]
[366682460,1750410643304,-934.96,0.00025636,4]
[366682463,1750410643315,-490.0,0.00025636,4]
[366682465,1750410643325,-917.07,0.00025636,4]
[366682467,1750410643336,-1794.46,0.00025636,4]
[366682469,1750410643347,-462.63229506,0.00025636,4]
[366682471,1750410643362,-490.0,0.00025636,4]
[366682473,1750410643374,-490.0,0.00025636,4]
[366682475,1750410643387,-490.0,0.00025636,4]
[366682477,1750410643397,-490.0,0.00025636,4]
[366682479,1750410643408,-591.33910154,0.00025636,4]
[366682482,1750410643419,-867.36,0.00025636,4]
[366682483,1750410643429,-490.0,0.00025636,4]
[366682486,1750410643440,-490.0,0.00025636,4]
[366682488,1750410643451,-490.54,0.00025636,4]
[366682490,1750410643462,-490.0,0.00025636,4]
[366682492,1750410643472,-490.0,0.00025636,4]
[366682494,1750410643482,-490.0,0.00025636,4]
[366682496,1750410643493,-490.0,0.00025636,4]
[366682498,1750410643503,-235.81244958,0.00025636,4]
[366682500,1750410643514,-490.0,0.00025636,4]
[366682502,1750410643524,-490.0,0.00025636,4]
[366682504,1750410643535,-802.22,0.00025636,4]
[366682506,1750410643546,-490.0,0.00025636,4]
[366682508,1750410643557,-541.6916472,0.00025636,4]
[366682510,1750410643569,-1030.95,0.00025636,4]
[366682513,1750410643580,-490.0,0.00025636,4]
[366682515,1750410643590,-557.37,0.00025636,4]
[366682517,1750410643601,-490.0,0.00025636,4]
[366682519,1750410643611,-490.0,0.00025636,4]
[366682521,1750410643622,-490.0,0.00025636,4]
[366682523,1750410643632,-548.63,0.00025636,4]
[366682525,1750410643642,-490.0,0.00025636,4]
[366682527,1750410643652,-668.68,0.00025636,4]
[366682529,1750410643662,-490.0,0.00025636,4]
[366682531,1750410643673,-490.0,0.00025636,4]
[366682533,1750410643683,-490.0,0.00025636,4]
[366682535,1750410643693,-490.0,0.00025636,4]
[366682537,1750410643703,-490.0,0.00025636,4]
[366682539,1750410643714,-490.0,0.00025636,4]
[366682541,1750410643724,-490.0,0.00025636,4]
[366682543,1750410643734,-494.52,0.00025636,4]
[366682545,1750410643745,-1625.89,0.00025636,4]
[366682547,1750410643755,-425.21360068,0.00025636,4]
[366682549,1750410643765,-733.8,0.00025636,4]
[366682552,1750410643775,-860.17,0.00025636,4]
[366682554,1750410643785,-490.0,0.00025636,4]
[366682556,1750410643795,-490.0,0.00025636,4]
[366682558,1750410643806,-870.22,0.00025636,4]
[366682560,1750410643816,-490.0,0.00025636,4]
[366682562,1750410643826,-490.0,0.00025636,4]
[366682564,1750410643836,-490.0,0.00025636,4]
[366682567,1750410643856,-505.1,0.00025636,4]
[366682569,1750410643867,-622.75,0.00025636,4]
[366682571,1750410643878,-490.0,0.00025636,4]
[366682573,1750410643888,-490.0,0.00025636,4]
[366682575,1750410643898,-490.0,0.00025636,4]
[366682577,1750410643909,-490.0,0.00025636,4]
[366682579,1750410643918,-891.78,0.00025636,4]
[366682581,1750410643929,-490.0,0.00025636,4]
[366682583,1750410643939,-490.0,0.00025636,4]
[366682585,1750410643949,-490.0,0.00025636,4]
[366682587,1750410643960,-1622.58,0.00025636,4]
[366682589,1750410643970,-490.0,0.00025636,4]
[366682591,1750410643980,-490.0,0.00025636,4]
[366682593,1750410643991,-490.0,0.00025636,4]
[366682595,1750410644001,-2135.67,0.00025636,4]
[366682597,1750410644011,-490.0,0.00025636,4]
[366682599,1750410644021,-490.0,0.00025636,4]
[366682601,1750410644031,-490.0,0.00025636,4]
[366682603,1750410644041,-490.0,0.00025636,4]
[366682605,1750410644050,-490.0,0.00025636,4]
[366682607,1750410644060,-632.9,0.00025636,4]
[366682609,1750410644069,-490.0,0.00025636,4]
[366682612,1750410644080,-490.0,0.00025636,4]
[366682614,1750410644090,-429.20342788,0.00025636,4]
[366682616,1750410644100,-490.0,0.00025636,4]
[366682618,1750410644109,-490.0,0.00025636,4]
[366682620,1750410644119,-490.0,0.00025636,4]
[366682622,1750410644129,-490.0,0.00025636,4]
[366682624,1750410644138,-2035.77,0.00025636,4]
[366682626,1750410644148,-490.0,0.00025636,4]
[366682628,1750410644158,-942.87,0.00025636,4]
[366682630,1750410644168,-490.0,0.00025636,4]
[366682631,1750410644177,-490.0,0.00025636,4]
[366682633,1750410644186,-490.0,0.00025636,4]
[366682635,1750410644196,-490.0,0.00025636,4]
[366682638,1750410644206,-490.0,0.00025636,4]
[366682640,1750410644216,-598.49,0.00025636,4]
[366682642,1750410644225,-490.0,0.00025636,4]
[366682644,1750410644235,-490.0,0.00025636,4]
[366682646,1750410644244,-490.0,0.00025636,4]
[366682648,1750410644254,-490.0,0.00025636,4]
[366682650,1750410644263,-701.8,0.00025636,4]
[366682652,1750410644273,-490.0,0.00025636,4]
[366682654,1750410644282,-490.0,0.00025636,4]
[366682656,1750410644293,-512.47,0.00025636,4]
[366682658,1750410644303,-626.74,0.00025636,4]
[366682660,1750410644313,-490.0,0.00025636,4]
[366682661,1750410644322,-490.0,0.00025636,4]
[366682663,1750410644332,-571.66169215,0.00025636,4]
[366682665,1750410644342,-490.0,0.00025636,4]
[366682667,1750410644358,-490.0,0.00025636,4]
[366682670,1750410644381,-490.0,0.00025636,4]
[366682673,1750410644398,-490.0,0.00025636,4]
[366682676,1750410644414,-490.0,0.00025636,4]
[366682678,1750410644432,-490.0,0.00025636,4]
[366682681,1750410644450,-639.11,0.00025636,4]
[366682684,1750410644470,-490.0,0.00025636,4]
[366682687,1750410644487,-1252.13,0.00025636,4]
[366682689,1750410644500,-490.0,0.00025636,4]
[366682692,1750410644518,-490.0,0.00025636,4]
[366682695,1750410644536,-490.0,0.00025636,4]
[366682697,1750410644554,-490.0,0.00025636,4]
[366682699,1750410644571,-490.0,0.00025636,4]
[366682700,1750410644589,-490.0,0.00025636,4]
[366682701,1750410644607,-490.0,0.00025636,4]
[366682702,1750410644625,-490.0,0.00025636,4]
[366682703,1750410644642,-490.0,0.00025636,4]
[366682704,1750410644658,-490.0,0.00025636,4]
[366682705,1750410644674,-490.0,0.00025636,4]
[366682706,1750410644696,-490.0,0.00025636,4]
[366682709,1750410644714,-490.0,0.00025636,4]
[366682711,1750410644731,-490.0,0.00025636,4]
[366682714,1750410644743,-490.0,0.00025636,4]
[366682716,1750410644759,-490.0,0.00025636,4]
[366682719,1750410644778,-490.0,0.00025636,4]
[366682721,1750410644791,-553.41,0.00025636,4]
[366682724,1750410644803,-490.0,0.00025636,4]
[366682726,1750410644819,-490.0,0.00025636,4]
[366682729,1750410644841,-490.0,0.00025636,4]
[366682732,1750410644854,-490.0,0.00025636,4]
[366682734,1750410644867,-490.0,0.00025636,4]
[366682737,1750410644881,-490.0,0.00025636,4]
[366682739,1750410644896,-490.0,0.00025636,4]
[366682741,1750410644910,-490.0,0.00025636,4]
[366682743,1750410644925,-1079.68,0.00025636,4]
[366682746,1750410644940,-1391.61,0.00025636,4]
[366682749,1750410644957,-490.0,0.00025636,4]
[366682752,1750410644975,-490.0,0.00025636,4]
[366682756,1750410645016,-490.0,0.00025636,4]
[366682759,1750410645032,-490.0,0.00025636,4]
[366682761,1750410645048,-1154.89,0.00025636,4]
[366682764,1750410645064,-785.88,0.00025636,4]
[366682766,1750410645080,-490.0,0.00025636,4]
[366682769,1750410645095,-490.0,0.00025636,4]
[366682772,1750410645111,-490.0,0.00025636,4]
[366682774,1750410645128,-738.43,0.00025636,4]
[366682777,1750410645142,-681.78,0.00025636,4]
[366682779,1750410645159,-923.66,0.00025636,4]
[366682782,1750410645174,-490.0,0.00025636,4]
[366682784,1750410645189,-490.0,0.00025636,4]
[366682787,1750410645205,-490.0,0.00025636,4]
[366682789,1750410645219,-490.0,0.00025636,4]
[366682792,1750410645235,-490.0,0.00025636,4]
[366682794,1750410645249,-678.07,0.00025636,4]
[366682797,1750410645266,-490.0,0.00025636,4]
[366682799,1750410645282,-490.0,0.00025636,4]
[366682802,1750410645299,-508.45,0.00025636,4]
[366682804,1750410645314,-490.0,0.00025636,4]
[366682806,1750410645328,-490.0,0.00025636,4]
[366682809,1750410645342,-768.87,0.00025636,4]